Cogmind - Beta 12 @@@ ROGUE MODE // 2023.04.26 @ 20:29:32 Player: Mr Goldstein Result: Destroyed by Enhanced Grunt with Neutron Cannon Performance ------------- Evolutions (3) 1500 Regions Visited (7) 1400 Robots Destroyed (6) 30 Value Destroyed (72) 72 Prototype IDs (218) 4360 Alien Tech Used (0) 0 Bonus (4214) 4214 TOTAL SCORE: 11576 Bonus ------- Pacifist 834 Follower Combat Kills 80 Met Data Miner 300 Used Data Conduit 3000 Cogmind --------- Core Integrity 0/700 Matter 300/300 Energy 83/100 System Corruption 20% Temperature Cool (0) Movement Core (50) Location -7/Data Miner Parts ------- > --- POWER (2) -------- (None) > --- PROPULSION (6) --- (None) > --- UTILITY (3) ------ System Mapper Quantum Router > --- WEAPON (2) ------- Makeshift Sword > --- INVENTORY (5) ---- Light Ion Engine Light Nuclear Core Light Nuclear Core Launcher Guidance Computer Heavy Missile Launcher Peak State ------------ > --- POWER ------------ Light Ion Engine Light Nuclear Core > --- PROPULSION ------- VTOL Module VTOL Module VTOL Module Cesium-ion Thruster Xenon Bombardment Thruster > --- UTILITY ---------- (None) > --- WEAPON ----------- Greatsword > --- INVENTORY -------- Light Nuclear Core Heavy Missile Launcher Katana [Rating: 26] Favorites ----------- Power Light Nuclear Core Engine Light Ion Engine Power Core Light Nuclear Core Propulsion VTOL Module Treads Light Treads Flight Unit VTOL Module Utility Improved Medium Armor Plating Hackware Quantum Router Protection Improved Medium Armor Plating Weapon Spear Slashing Weapon Makeshift Sword Piercing Weapon Spear Build | -11 -10 -9 -8 -7 -7 -7 -7 ------- Run | Jun Mat Mat Mat Fac Low Low Dat Slots Evolved 6 | . . 2 2 2 . . . Power 1 | . . . . 1 . . . Propulsion 4 | . . 2 1 1 . . . Utility 1 | . . . 1 . . . . Weapon . | . . . . . . . . Parts Attached 21 | 2 . . . 15 2 . 2 Power 3 | . . . . 3 . . . Engine 1 | . . . . 1 . . . Core 2 | . . . . 2 . . . Reactor . | . . . . . . . . Propulsion 11 | 2 . . . 9 . . . Treads 2 | 2 . . . . . . . Leg . | . . . . . . . . Wheel . | . . . . . . . . Hover . | . . . . . . . . Flight 9 | . . . . 9 . . . Utility 3 | . . . . . 1 . 2 Device . | . . . . . . . . Storage . | . . . . . . . . Processor . | . . . . . . . . Hackware 2 | . . . . . . . 2 Protection 1 | . . . . . 1 . . Artifact . | . . . . . . . . Weapon 4 | . . . . 3 1 . . Energy Gun . | . . . . . . . . Energy Cannon . | . . . . . . . . Ballistic Gun . | . . . . . . . . Ballistic Cannon . | . . . . . . . . Launcher . | . . . . . . . . Special Weapon . | . . . . . . . . Impact Weapon . | . . . . . . . . Slashing Weapon 3 | . . . . 2 1 . . Piercing Weapon 1 | . . . . 1 . . . Special Melee Weapon . | . . . . . . . . Unidentified Prototypes 2 | . . . . . . . 2 Parts Lost 10 | . . . . 7 1 2 . Power . | . . . . . . . . Propulsion 9 | . . . . 6 1 2 . Utility . | . . . . . . . . Weapon 1 | . . . . 1 . . . Highest Loss Streak 5 | . . . . 5 1 1 . To Critical Strikes . | . . . . . . . . Average Slot Usage (%) 28 | . 28 22 18 32 36 16 10 Core 1 | . . . . . 7 1 . Treads 3 | . 28 22 18 . . . . Flight 16 | . . . . 25 19 7 . Slashing Weapon 2 | . . . . 1 5 7 7 Piercing Weapon 1 | . . . . 3 . . . Naked Turns 2 | . . . . 2 . . . Heaviest Build 13 | . . . . 13 13 7 2 Greatest Support 23 | 20 3 3 3 23 15 10 3 Greatest Overweight (x) 1 | . . . . 1 . . . Average Overweight (x) . | . . . . . . . . Largest Inventory Capacity 5 | 5 5 5 5 5 5 5 5 Average Capacity 5 | 5 5 5 5 5 5 5 5 Most Carried 5 | . 4 4 4 5 5 5 5 Average Carried 3 | . 2 4 4 2 3 4 5 Final Capacity 5 | 5 5 5 5 5 5 5 5 Final Carried 5 | . 4 4 4 3 3 5 5 Class Distribution -------------------- 52% | Mutant 42% | Sprinter 5% | Scavenger-Mutant Dominant Class ---------------- Mutant | -10/Materials Mutant | -9/Materials Mutant | -8/Materials Sprinter | -7/Factory Mutant | -7/Lower Caves Mutant | -7/Lower Caves Mutant | -7/Data Miner Resources | -11 -10 -9 -8 -7 -7 -7 -7 ----------- Run | Jun Mat Mat Mat Fac Low Low Dat Matter Collected 430 | 189 . . . 182 24 15 20 Remotely . | . . . . . . . . Salvage Created 258 | . . . . 228 . . 30 Parts 13 | . . . . 11 . . 2 Haulers Intercepted . | . . . . . . . . Recyclers Shooed 1 | . . . . 1 . . . Parts Field Recycled . | . . . . . . . . Retrieved Matter . | . . . . . . . . Parts Self-Destructed 2 | . . . . . . 2 . Prevented . | . . . . . . . . Kills | -11 -10 -9 -8 -7 -7 -7 -7 ------- Run | Jun Mat Mat Mat Fac Low Low Dat Combat Hostiles Destroyed 1 | . . . . 1 . . . Melee 1 | . . . . 1 . . . Classes Destroyed 4 | . . . . 4 . . . Worker 1 | . . . . 1 . . . Builder 2 | . . . . 2 . . . Recycler 1 | . . . . 1 . . . Sentry 1 | . . . . 1 . . . Best Kill Streak 2 | . . . . 2 . . 1 Combat Bots Only 1 | . . . . 1 . . . Max Kills in Single Turn 1 | . . . . 1 . . 1 Gunslinging . | . . . . . . . . Exploded . | . . . . . . . . Melee 1 | . . . . 1 . . . Uniques/NPCs Destroyed 1 | . . . . . . . 1 Data Miner (-7/Data Miner) Combat | -11 -10 -9 -8 -7 -7 -7 -7 -------- Run | Jun Mat Mat Mat Fac Low Low Dat Damage Taken 1660 | . 157 88 117 798 59 118 323 Core 888 | . 35 56 74 322 13 65 323 Absorbed by Shields . | . . . . . . . . Core Remaining (%) 89 | 100 86 86 86 . . . . Volleys Fired . | . . . . . . . . Largest . | . . . . . . . . Hottest . | . . . . . . . . Shots Fired . | . . . . . . . . Gun . | . . . . . . . . Cannon . | . . . . . . . . Launcher . | . . . . . . . . Special . | . . . . . . . . Kinetic . | . . . . . . . . Thermal . | . . . . . . . . Explosive . | . . . . . . . . Electromagnetic . | . . . . . . . . Robot Hit Streak . | . . . . . . . . Robot Miss Streak . | . . . . . . . . Penetration Max . | . . . . . . . . Secondary Targets . | . . . . . . . . Shots Hit Robots 10 | . . . . 9 . . 1 Core Hits 3 | . . . . 2 . . 1 Critical Kills . | . . . . . . . . Critical Parts Destroyed . | . . . . . . . . Critical Strikes 4 | . . . . 4 . . . Sever 3 | . . . . 3 . . . Impale 1 | . . . . 1 . . . Melee Attacks 65 | . . . . 61 3 . 1 Impact . | . . . . . . . . Slashing 18 | . . . . 14 3 . 1 Piercing 47 | . . . . 47 . . . Sneak Attacks 5 | . . . . 4 . . 1 Combat Hostiles . | . . . . . . . . Follow-up Attacks . | . . . . . . . . Damage Inflicted 710 | . 6 . . 627 . . 77 Guns . | . . . . . . . . Cannons . | . . . . . . . . Explosions . | . . . . . . . . Melee 702 | . . . . 625 . . 77 Ramming 8 | . 6 . . 2 . . . Kinetic . | . . . . . . . . Thermal . | . . . . . . . . Explosive . | . . . . . . . . Electromagnetic . | . . . . . . . . Impact . | . . . . . . . . Slashing 533 | . . . . 456 . . 77 Piercing 169 | . . . . 169 . . . Highest Corruption 20 | . . . . 20 20 20 20 Average Corruption 18 | . . . . 16 20 20 20 Corruption Purged . | . . . . . . . . Corruption Blocked . | . . . . . . . . Effects 21 | . . . . 9 6 5 1 Message Errors 5 | . . . . 2 2 1 . Matter Fused 5 | . . . . 2 1 2 . Heat Flow Errors 3 | . . . . 2 . 1 . Energy Discharges 2 | . . . . . 1 . 1 Parts Rejected 1 | . . . . 1 . . . Data Loss (minor) 1 | . . . . . 1 . . Misdirections 4 | . . . . 2 1 1 . Overload Shots . | . . . . . . . . Overflow Damage 229 | . . . . 229 . . . Projectiles . | . . . . . . . . Explosions . | . . . . . . . . Melee 229 | . . . . 229 . . . Knockbacks . | . . . . . . . . Impact . | . . . . . . . . Kinetic . | . . . . . . . . Secondary . | . . . . . . . . Self-Inflicted Damage 4 | . 3 . . 1 . . . Shots . | . . . . . . . . Rammed 2 | . 1 . . 1 . . . Targets Rammed 2 | . 1 . . 1 . . . Kicked . | . . . . . . . . Crushed . | . . . . . . . . Highest Temperature 190 | . . . . 189 9 190 . Average Temperature 64 | . . . . 55 9 156 . Received Heat Transfer 249 | . 84 27 . 60 36 42 . Siege Activations . | . . . . . . . . Robots Corrupted . | . . . . . . . . Combat Hostiles . | . . . . . . . . Parts Fried . | . . . . . . . . Impact Corruptions . | . . . . . . . . Robots Melted . | . . . . . . . . Combat Hostiles . | . . . . . . . . Parts Melted . | . . . . . . . . Heat Transferred . | . . . . . . . . Parts Sabotaged . | . . . . . . . . Parts Stolen . | . . . . . . . . Parts Stripped . | . . . . . . . . Power Chain Reactions . | . . . . . . . . Missiles Intercepted . | . . . . . . . . Alert | -11 -10 -9 -8 -7 -7 -7 -7 ------- Run | Jun Mat Mat Mat Fac Low Low Dat Peak Influence 329 | . 15 20 38 329 . . . Initial 16 | . . 5 8 16 . . . Average 137 | . 12 12 22 179 . . . Maximum Alert Level 1 | . . . . 1 . . . Low Security (%) 58 | 100 100 100 100 44 . . . Level 1 41 | . . . . 55 . . . Level 2 . | . . . . . . . . Level 3 . | . . . . . . . . Level 4 . | . . . . . . . . Level 5 . | . . . . . . . . High Security . | . . . . . . . . Max Security . | . . . . . . . . Squads Dispatched 7 | . 1 . 2 4 . . . Investigation 2 | . . . . 2 . . . Extermination . | . . . . . . . . Reinforcement 5 | . 1 . 2 2 . . . Assault . | . . . . . . . . Garrison . | . . . . . . . . Intercept . | . . . . . . . . Searches Triggered . | . . . . . . . . Construction Impeded . | . . . . . . . . Haulers Reinforced . | . . . . . . . . Active Scanning Responses . | . . . . . . . . Cargo Convoy Interrupts . | . . . . . . . . Stealth | -11 -10 -9 -8 -7 -7 -7 -7 --------- Run | Jun Mat Mat Mat Fac Low Low Dat Distress Signals 1 | . . . . 1 . . . Communications Jammed . | . . . . . . . . Distress Signals . | . . . . . . . . Times Spotted 61 | . 6 1 5 27 6 12 4 Peak Tracking Total 10 | . 5 2 4 10 5 9 4 Tactical Retreats 8 | . . . . 5 2 1 . Traps | -11 -10 -9 -8 -7 -7 -7 -7 ------- Run | Jun Mat Mat Mat Fac Low Low Dat Traps Triggered 5 | . . . . 5 . . . Indirectly . | . . . . . . . . Trap Hack Attempts . | . . . . . . . . Triggered . | . . . . . . . . Disarmed . | . . . . . . . . Reprogrammed . | . . . . . . . . Reused . | . . . . . . . . Traps Extracted . | . . . . . . . . Installed . | . . . . . . . . Triggered 1 | . . . . . . 1 . Machines | -11 -10 -9 -8 -7 -7 -7 -7 ---------- Run | Jun Mat Mat Mat Fac Low Low Dat Machines Disabled 1 | . . . . . 1 . . Max in Single Turn 1 | . . . . . 1 . . Machines Repaired . | . . . . . . . . Machines Sabotaged . | . . . . . . . . Overloaded Fab Kills . | . . . . . . . . Hacking | -11 -10 -9 -8 -7 -7 -7 -7 --------- Run | Jun Mat Mat Mat Fac Low Low Dat Machines Accessed 6 | . . . . 3 . . 3 Terminals 2 | . . . . 2 . . . Fabricators . | . . . . . . . . Repair Stations . | . . . . . . . . Recycling Units . | . . . . . . . . Scanalyzers . | . . . . . . . . Garrison Access 1 | . . . . 1 . . . Total Hacks 26 | . . . . 5 . . 21 Successful 23 | . . . . 2 . . 21 Failed 3 | . . . . 3 . . . Catastrophic . | . . . . . . . . Database Lockouts . | . . . . . . . . Manual 2 | . . . . 2 . . . Terminals 3 | . . . . 3 . . . Fabricators . | . . . . . . . . Repair Stations . | . . . . . . . . Recycling Units . | . . . . . . . . Scanalyzers . | . . . . . . . . Garrison Access 2 | . . . . 2 . . . Terminal Hacks 23 | . . . . 2 . . 21 Record 2 | . . . . . . . 2 Part Schematic 11 | . . . . . . . 11 Robot Schematic 5 | . . . . . . . 5 Prototype ID Bank 3 | . . . . . . . 3 Branch Access Points 1 | . . . . 1 . . . Zone Layout 1 | . . . . 1 . . . Fabricator Hacks . | . . . . . . . . Repair Station Hacks . | . . . . . . . . Recycling Unit Hacks . | . . . . . . . . Scanalyzer . | . . . . . . . . Garrison Access Hacks . | . . . . . . . . Unauthorized Hacks . | . . . . . . . . Terminals . | . . . . . . . . Fabricators . | . . . . . . . . Repair Stations . | . . . . . . . . Recycling Units . | . . . . . . . . Scanalyzers . | . . . . . . . . Garrison Access . | . . . . . . . . Data Cores Recovered . | . . . . . . . . Used . | . . . . . . . . Hacking Detections 2 | . . . . 2 . . . Full Trace Events 1 | . . . . 1 . . . Feedback Events . | . . . . . . . . Feedback Blocked . | . . . . . . . . Robot Schematics Acquired 5 | . . . . . . . 5 Robots Built . | . . . . . . . . Authchips . | . . . . . . . . Time . | . . . . . . . . Total Robot Build Rating . | . . . . . . . . Part Schematics Acquired 11 | . . . . . . . 11 Parts Built . | . . . . . . . . Authchips . | . . . . . . . . Time . | . . . . . . . . Total Part Build Rating . | . . . . . . . . Parts Repaired . | . . . . . . . . Time . | . . . . . . . . Parts Recycled . | . . . . . . . . Recycled Matter . | . . . . . . . . Retrieved Matter . | . . . . . . . . Retrieved Components . | . . . . . . . . Parts Scanalyzed . | . . . . . . . . Part Schematics Acquired . | . . . . . . . . Parts Damaged . | . . . . . . . . Bothacking | -11 -10 -9 -8 -7 -7 -7 -7 ------------ Run | Jun Mat Mat Mat Fac Low Low Dat Used RIF Installer . | . . . . . . . . Robots Hacked . | . . . . . . . . Non-combat . | . . . . . . . . Combat . | . . . . . . . . Robot Hacks Applied . | . . . . . . . . Relay Couplers Released . | . . . . . . . . Fabnet Peak Effective % . | . . . . . . . . Robots Rewired . | . . . . . . . . Allies Hacked . | . . . . . . . . Hacks Repelled . | . . . . . . . . Allies | -11 -10 -9 -8 -7 -7 -7 -7 -------- Run | Jun Mat Mat Mat Fac Low Low Dat Total Allies 2 | . . . . 2 . . . Largest Group 2 | . . . . 2 . . . Highest-Rated Group 62 | . . . . 62 . . . Highest-Rated Ally 31 | . . . . 31 . . . Total Orders . | . . . . . . . . Ally Attacks 18 | . . . . 18 . . . Total Damage 205 | . . . . 205 . . . Kills 4 | . . . . 4 . . . Allies Corrupted . | . . . . . . . . Allies Melted . | . . . . . . . . Intel | -11 -10 -9 -8 -7 -7 -7 -7 ------- Run | Jun Mat Mat Mat Fac Low Low Dat Robot Analysis Total 131 | . . . . . . . 131 Derelict Logs Recovered 4 | . . . . . 2 2 . Drone Launches . | . . . . . . . . Drone Recoveries . | . . . . . . . . Exploration | -11 -10 -9 -8 -7 -7 -7 -7 ------------- Run | Jun Mat Mat Mat Fac Low Low Dat Turns Passed 805 | 16 43 47 38 418 118 69 56 Spaces Moved 1556 | 19 76 93 76 667 333 191 101 Core 375 | 16 76 93 76 7 . 6 101 Treads 3 | 3 . . . . . . . Legs . | . . . . . . . . Wheels . | . . . . . . . . Hover . | . . . . . . . . Flight 1178 | . . . . 660 333 185 . Fastest Speed 24 | 50 50 50 50 24 30 34 50 Average Speed 36 | 67 50 50 50 31 31 35 50 Slowest Speed 160 | 160 50 50 50 100 34 50 50 Overloaded Moves . | . . . . . . . . Propulsion Burnouts . | . . . . . . . . Robots Hopped 5 | . . . . 3 2 . . Cave-ins Triggered 8 | . . . . 8 . . . Exploration Rate (%) 32 | 3 23 17 14 27 60 42 77 Regions Visited 7 Branch Regions 3 Pre-discovered Areas 31 | . . . . . 1 1 29 Known Exits Taken 1 | . . . . 1 . . . Unknown Exits Taken 6 | 1 1 1 1 . 1 1 . Scrap Searched 4 | . . . . . 3 1 . Spaces Dug 49 | . . . . 49 . . . Terrain Destroyed 49 | . . . . 49 . . . Melee 49 | . . . . 49 . . . Projectile . | . . . . . . . . AOE . | . . . . . . . . Terrain Rammed . | . . . . . . . . Walls Destroyed . | . . . . . . . . Machines Disabled . | . . . . . . . . Actions | -11 -10 -9 -8 -7 -7 -7 -7 --------- Run | Jun Mat Mat Mat Fac Low Low Dat Total 1672 | 20 80 92 75 769 340 192 104 Wait . | . . . . . . . . Move 1534 | 18 75 92 75 655 328 190 101 Hop 5 | . . . . 3 2 . . Pick Up 13 | . 4 . . 7 1 1 . Fast Attach 10 | 2 . . . 5 1 . 2 Attach 10 | . . . . 9 1 . . Detach 2 | . . . . . 1 1 . Swap 1 | . . . . 1 . . . Drop 5 | . . . . 2 3 . . Fire . | . . . . . . . . Melee 65 | . . . . 61 3 . 1 Ram 1 | . 1 . . . . . . Kick . | . . . . . . . . Crush . | . . . . . . . . Escape Stasis 26 | . . . . 26 . . . Rewire . | . . . . . . . . Trap . | . . . . . . . . Miscellaneous . | . . . . . . . . Route ------- -11/Junkyard -10/Materials -9/Materials -8/Materials -7/Factory (discovered 2 exits: *Low x2) -7/Lower Caves -7/Lower Caves -7/Data Miner (discovered 1 exit: [*Pro]) History --------- Turn | Location | Event 10 | -11/Junkyard | Discovered new exit (range 13) 17 | -11/Junkyard | Entered Materials 58 | -10/Materials | Discovered new exit (range 6) 60 | -10/Materials | Entered another Materials area 60 | -9/Materials | Evolved 2 slots: Propulsion x2 104 | -9/Materials | Discovered new exit (range 6) 107 | -9/Materials | Entered another Materials area 107 | -8/Materials | Evolved 2 slots: Propulsion x1, Utility x1 138 | -8/Materials | Discovered new exit (range 14) 145 | -8/Materials | Entered Factory 145 | -7/Factory | Evolved 2 slots: Power x1, Propulsion x1 255 | -7/Factory | Identified exit to Lower Caves 392 | -7/Factory | Crushed by falling debris 414 | -7/Factory | Crushed by falling debris 431 | -7/Factory | Crushed by falling debris 434 | -7/Factory | Crushed by falling debris 448 | -7/Factory | Crushed by falling debris 449 | -7/Factory | System corruption reached 10% 453 | -7/Factory | Crushed by falling debris 456 | -7/Factory | Crushed by falling debris 483 | -7/Factory | Crushed by falling debris 487 | -7/Factory | Lost 5 parts (4n1w) 512 | -7/Factory | Allied Derelicts emerged from ambush trap array 563 | -7/Factory | Entered Lower Caves 600 | -7/Lower Caves | Learned location of Extension (-5) 671 | -7/Lower Caves | Learned location of 1 exit from Factory 675 | -7/Lower Caves | Discovered new exit (range 15) 681 | -7/Lower Caves | Entered another Lower Caves area 690 | -7/Lower Caves | Learned location of Zion (-6) 697 | -7/Lower Caves | Attracted the attention of an 0b10 checkpoint 704 | -7/Lower Caves | Learned location of 1 exit from Factory 723 | -7/Lower Caves | Core integrity fell below 50% 745 | -7/Lower Caves | Discovered new exit (range 14) 750 | -7/Lower Caves | Entered Data Miner 750 | -7/Data Miner | Discovered new exit (range 7) 760 | -7/Data Miner | Met Data Miner 779 | -7/Data Miner | Learned location of Section 7 (-3) 787 | -7/Data Miner | Received God Mode back door access code from Data Miner 790 | -7/Data Miner | Destroyed Data Miner 792 | -7/Data Miner | Found Prototype Hackware 792 | -7/Data Miner | Identified Quantum Router 794 | -7/Data Miner | Found Prototype Hackware 794 | -7/Data Miner | Identified System Mapper 795 | -7/Data Miner | Interfaced with the Data Conduit 804 | -7/Data Miner | Core integrity fell below 20% 806 | -7/Data Miner | Destroyed by Enhanced Grunt with Neutron Cannon Last Messages --------------- Data Miner: I've just received further instructions. God Mode is nearly complete and we think you might be able to put it to better use than Warlord, so if you see an opportunity, hack it and enter \\WWJF to gain control via the back door I've installed. Now off with you. 00790_ Sneak attack on Data Miner. 00790_ Data Miner destroyed. 00792_ Acquired Prototype Hackware. 00792_ Identified Quantum Router. 00794_ Acquired Prototype Hackware. 00794_ Identified System Mapper. 00795_ Acquired 20 matter. 00795_ Interfacing with system... Downloaded 131 analysis records. Downloaded 719 prototype IDs. Downloaded central machine database. Downloaded 28 destinations. Downloaded encryption format records. Connection remotely terminated. 00797_ System corrupted: Energy discharge (-25). Map ----- +----------------------------------------------------+ | | | | | | | | | | | | | | | | | | | | | | | | | | | | | | | | | ?????????????????????????????????????????????? | | ?????????????????????????????????????????????? | | ?????????????????????????????????????????????? | | ?????????????????????????????????????????????? | | ?????????????????????????????????####????????? | | ??###############????########??### #????????? | | ?"""""""""""""""###### # # ;?### #????????? | | """"""""" """"""""# # # # ## < ##????????? | | """"""""" g g ######???? | | """""" gg@ #???? | | """""" #???? | | """""% #???? | | """""" ##???? | | """""" " " """"""""""""#####????? | | """"""" """###############????????? | | """"""" """""###??????????????????????? | | ?"""""""" "#####????????????????????????? | | ??######"## "#????????????????????????????? | | ???????#"### "#????????????????????????????? | | ???????#"### "#????????????????????????????? | | ???????#"## "#????????????????????????????? | | ???????#"## "#????????????????????????????? | | ?????????# "#????????????????????????????? | | ?????????### "#????????????????????????????? | | ???????????# "##???????????????????????????? | | ??????????## ""#???????????????????????????? | | ?????????## ""#???????????????????????????? | | ??????##"#"X ""#???????????????????????????? | | ??????""""" "####????????????????????????? | | ??????""""" X"""""????????????????????????? | | ??????##"#"X "##"#????????????????????????? | | ???????#?## X""""#????????????????????????? | | ??????????## "##"#????????????????????????? | | ???????????#######???????????????????????????? | +----------------------------------------------------+ Best States ------------- Heat Dissipation 34 Energy Generation 19 Energy Capacity 185 Matter Stores 300 Matter Capacity 300 Sight Range 16 Terrain Scan Density 10 Armor Coverage 225 Evasion (%) 65 Recoil Reduction 2 Offensive Hacking 20 Defensive Hacking 25 Item Schematics ----------------- Combat Drone Bay | -7/Data Miner | Free Lgt. Regenerative Plating | -7/Data Miner | Free Cld. Aerolev Unit | -7/Data Miner | Free Exp. Targeting Computer | -7/Data Miner | Free Gyrokinetic Inverter | -7/Data Miner | Free Imp. Corruption Screen | -7/Data Miner | Free Imp. Heavy Laser | -7/Data Miner | Free Mass Driver | -7/Data Miner | Free Adv. Salvage Targeting Computer | -7/Data Miner | Free Adv. Power Amplifier | -7/Data Miner | Free Adv. Hardlight Generator | -7/Data Miner | Free Robot Schematics ------------------ X-62 Marksman | -7/Data Miner | Free O-24 Administrator | -7/Data Miner | Free R-10 Processor | -7/Data Miner | Free Y-54 Guardian | -7/Data Miner | Free I-47 Archangel | -7/Data Miner | Free Fabricated ------------ Nothing Alien Tech Used ----------------- None Achievements -------------- None Challenges ------------ None Game ------ Seed EtherialImpulseImmobilizer Manual? 0 Play Time 00:16:17 Cumulative 149.9 hours Start 2023.04.26 @ 20:06:14 End 2023.04.26 @ 20:29:32 Sessions 1 Manual Loads 0 Difficulty Rogue Special Mode None Game No. 435 Rogue 435 Adventurer 0 Explorer 0 Win Type - Total 7 Types 6/0/0/1/0/0/0/0/0 Lore% 65 Gallery% 71 Achievement% 61 Wizard Run 0 Options --------- ASCII 0 Keyboard 0 Movement Numpad Keybinds 0 Fullscreen 1 Font 16/SmallcapsGlow Map View 75x55 Tactical HUD 1 Map Filters NONE Filters NONE Steam 1 RUN: 8274c3e5-f807-487c-a93c-49421ef225c3